fUST/lending_fUST_20250629
["ID","MTS","AMOUNT","RATE_DAILY","PERIOD"]
[368572337,1751212275205,-500.0,0.00021,2]
[368572338,1751212275214,-300.0,0.00021,2]
[368572339,1751212275224,-150.0,0.00021,2]
[368572340,1751212275233,-668.99036679,0.00021,2]
[368572341,1751212275243,-2766.13,0.00021,2]
[368572342,1751212275253,-500.0,0.00021053,2]
[368572343,1751212275263,-223.0315306,0.00021144,2]
[368572344,1751212275273,-496.57,0.00021155,2]
[368572345,1751212275283,-460.0,0.00021156,2]
[368572346,1751212275292,-496.57,0.00021156,2]
[368572347,1751212275302,-877.67,0.00021156,2]
[368572348,1751212275311,-985.74,0.00021156,2]
[368572349,1751212275321,-4171.86,0.00021156,2]
[368572350,1751212275331,-763.53,0.00021156,2]
[368572351,1751212275341,-216.58999822,0.00021157,2]
[368572352,1751212275351,-460.0,0.00021158,2]
[368572353,1751212275362,-526.39,0.00021158,2]
[368572354,1751212275373,-5048.65,0.00021158,2]
[368572355,1751212275383,-6074.69,0.00021158,2]
[368572356,1751212275392,-460.0,0.00021158,2]
[368572357,1751212275401,-1371.34,0.00021158,2]
[368572358,1751212275411,-460.0,0.00021158,2]
[368572359,1751212275421,-779.81,0.00021158,2]
[368572360,1751212275430,-744.98,0.00021158,2]
[368572361,1751212275439,-6133.39,0.00021158,2]
[368572362,1751212275448,-6481.67,0.00021158,2]
[368572363,1751212275458,-6368.77,0.00021158,2]
[368572364,1751212275468,-922.66,0.00021158,2]
[368572365,1751212275477,-460.0,0.00021158,2]
[368572366,1751212275486,-3387.68,0.00021158,2]
[368572367,1751212275495,-868.93,0.00021158,2]
[368572368,1751212275505,-1017.26,0.00021158,2]
[368572369,1751212275515,-542.18,0.00021158,2]
[368572370,1751212275525,-858.3,0.00021158,2]
[368572371,1751212275537,-615.31,0.00021158,2]
[368572372,1751212275547,-1986.64671393,0.00021164,2]
[368572373,1751212275557,-460.0,0.00021166,2]
[368572374,1751212275567,-460.0,0.00021166,2]
[368572375,1751212275577,-3150.79,0.00021166,2]
[368572376,1751212275587,-819.52,0.00021166,2]
[368572377,1751212275596,-590.32,0.00021166,2]
[368572378,1751212275606,-1691.29,0.00021166,2]
[368572379,1751212275616,-515.43,0.00021166,2]
[368572380,1751212275626,-466.59,0.00021166,2]
[368572381,1751212275635,-460.0,0.00021166,2]
[368572382,1751212275645,-496.87,0.00021166,2]
[368572383,1751212275654,-1306.01,0.00021166,2]
[368572384,1751212275663,-834.94,0.00021166,2]
[368572385,1751212275673,-1993.83,0.00021166,2]
[368572386,1751212275683,-933.22,0.00021166,2]
[368572387,1751212275693,-460.0,0.00021166,2]
[368572388,1751212275702,-460.0,0.00021166,2]
[368572389,1751212275711,-460.0,0.00021167,2]
[368572390,1751212275721,-494.95,0.00021167,2]
[368572391,1751212275731,-2218.44,0.00021167,2]
[368572392,1751212275740,-983.0,0.00021167,2]
[368572393,1751212275749,-769.04,0.00021167,2]
[368572394,1751212275759,-1092.34,0.00021167,2]
[368572395,1751212275769,-460.0,0.00021167,2]
[368572396,1751212275779,-1464.13,0.00021167,2]
[368572397,1751212275789,-659.28,0.00021167,2]
[368572398,1751212275798,-460.0,0.00021167,2]
[368572399,1751212275808,-1106.47,0.00021167,2]
[368572400,1751212275817,-1178.48,0.00021167,2]
[368572401,1751212275828,-551.66,0.00021167,2]
[368572402,1751212275837,-1415.94,0.00021167,2]
[368572403,1751212275847,-460.0,0.00021168,2]
[368572404,1751212275856,-460.0,0.00021168,2]
[368572405,1751212275866,-460.0,0.00021168,2]
[368572406,1751212275875,-590.93,0.00021168,2]
[368572407,1751212275885,-512.49,0.00021168,2]
[368572408,1751212275895,-460.0,0.00021168,2]
[368572409,1751212275905,-536.21,0.00021168,2]
[368572410,1751212275915,-460.0,0.00021168,2]
[368572411,1751212275925,-526.92,0.00021168,2]
[368572412,1751212275935,-1058.71,0.00021168,2]
[368572413,1751212275944,-498.32,0.00021168,2]
[368572414,1751212275954,-460.0,0.00021168,2]
[368572415,1751212275963,-460.0,0.00021168,2]
[368572416,1751212275973,-460.0,0.00021168,2]
[368572417,1751212275982,-460.0,0.00021168,2]
[368572418,1751212275991,-536.3,0.00021168,2]
[368572419,1751212276001,-1377.55,0.00021168,2]
[368572420,1751212276011,-2061.44,0.00021168,2]
[368572421,1751212276020,-2876.23,0.00021168,2]
[368572422,1751212276030,-1086.08,0.00021168,2]
[368572423,1751212276039,-497.34,0.00021168,2]
[368572424,1751212276050,-8050.15,0.00021168,2]
[368572425,1751212276059,-942.8,0.00021168,2]
[368572426,1751212276068,-2362.92,0.00021168,2]
[368572427,1751212276078,-1838.81,0.00021168,2]
[368572428,1751212276087,-8640.27,0.00021168,2]
[368572429,1751212276096,-460.0,0.00021168,2]
[368572430,1751212276105,-503.72,0.00021168,2]
[368572431,1751212276114,-2105.06,0.00021168,2]
[368572432,1751212276123,-3146.96,0.00021168,2]
[368572433,1751212276133,-2893.8,0.00021168,2]
[368572434,1751212276142,-953.17,0.00021168,2]
[368572435,1751212276151,-538.85,0.00021168,2]
[368572436,1751212276160,-481.62,0.00021168,2]
[368572437,1751212276169,-5316.81,0.00021168,2]
[368572438,1751212276179,-460.0,0.00021168,2]
[368572439,1751212276188,-2088.18,0.00021168,2]
[368572440,1751212276198,-460.0,0.00021168,2]
[368572441,1751212276207,-460.0,0.00021168,2]
[368572442,1751212276217,-986.63,0.00021168,2]
[368572443,1751212276227,-801.8,0.00021168,2]
[368572444,1751212276237,-460.0,0.00021169,2]
[368572445,1751212276247,-460.0,0.00021169,2]
[368572446,1751212276258,-460.0,0.0002117,2]
[368572447,1751212276268,-2936.17,0.0002117,2]
[368572448,1751212276278,-460.0,0.0002117,2]
[368572449,1751212276288,-460.0,0.0002117,2]
[368572450,1751212276297,-1139.15,0.0002117,2]
[368572451,1751212276306,-460.0,0.0002117,2]
[368572452,1751212276315,-487.35,0.0002117,2]
[368572453,1751212276325,-524.59,0.0002117,2]
[368572454,1751212276334,-460.0,0.0002117,2]
[368572455,1751212276344,-157.99368671,0.00021233,2]
[368572456,1751212276353,-801.854,0.00021335,2]
[368572457,1751212276365,-2200.0,0.00021335,2]
[368572458,1751212276375,-500.0,0.00021356,2]
[368572459,1751212276384,-7323.27819566,0.00021369,2]
[368572460,1751212276393,-231.72867589,0.00021388,2]
[368572461,1751212276403,-2500.0,0.00021394,2]
[368572462,1751212276412,-496.57,0.00021429,2]
[368572463,1751212276422,-460.0,0.0002143,2]
[368572464,1751212276431,-496.57,0.0002143,2]
[368572465,1751212276440,-877.67,0.0002143,2]
[368572466,1751212276450,-985.74,0.0002143,2]
[368572467,1751212276459,-4171.86,0.0002143,2]
[368572468,1751212276468,-763.53,0.0002143,2]
[368572469,1751212276477,-460.0,0.00021432,2]
[368572470,1751212276486,-526.39,0.00021432,2]
[368572471,1751212276495,-5048.65,0.00021432,2]
[368572472,1751212276504,-6074.69,0.00021432,2]
[368572473,1751212276514,-460.0,0.00021432,2]
[368572474,1751212276523,-1371.34,0.00021432,2]
[368572475,1751212276534,-460.0,0.00021432,2]
[368572476,1751212276543,-779.81,0.00021432,2]
[368572477,1751212276552,-744.98,0.00021432,2]
[368572478,1751212276561,-6133.39,0.00021432,2]
[368572479,1751212276572,-6481.67,0.00021432,2]
[368572480,1751212276581,-6368.77,0.00021432,2]
[368572481,1751212276591,-922.66,0.00021432,2]
[368572482,1751212276600,-460.0,0.00021432,2]
[368572483,1751212276609,-3387.68,0.00021432,2]
[368572484,1751212276618,-868.93,0.00021432,2]
[368572485,1751212276628,-1017.26,0.00021432,2]
[368572486,1751212276638,-542.18,0.00021432,2]
[368572487,1751212276647,-858.3,0.00021432,2]
[368572488,1751212276656,-615.31,0.00021432,2]
[368572489,1751212276666,-460.0,0.0002144,2]
[368572490,1751212276675,-460.0,0.0002144,2]
[368572491,1751212276685,-3150.79,0.0002144,2]
[368572492,1751212276695,-819.52,0.0002144,2]
[368572493,1751212276703,-590.32,0.0002144,2]
[368572494,1751212276713,-1691.29,0.0002144,2]
[368572495,1751212276723,-515.43,0.0002144,2]
[368572496,1751212276732,-466.59,0.0002144,2]
[368572497,1751212276741,-287.84,0.0002144,2]
[368572498,1751212276750,-496.87,0.0002144,2]
[368572499,1751212276760,-1306.01,0.0002144,2]
[368572500,1751212276769,-834.94,0.0002144,2]
[368572501,1751212276779,-1993.83,0.0002144,2]
[368572502,1751212276789,-933.22,0.0002144,2]
[368572503,1751212276799,-460.0,0.0002144,2]
[368572504,1751212276808,-460.0,0.0002144,2]
[368572505,1751212276817,-460.0,0.00021441,2]
[368572506,1751212276827,-494.95,0.00021441,2]
[368572507,1751212276838,-2218.44,0.00021441,2]
[368572508,1751212276848,-983.0,0.00021441,2]
[368572509,1751212276857,-769.04,0.00021441,2]
[368572510,1751212276867,-1092.34,0.00021441,2]
[368572511,1751212276876,-460.0,0.00021441,2]
[368572512,1751212276886,-1464.13,0.00021441,2]
[368572513,1751212276895,-659.28,0.00021441,2]
[368572514,1751212276904,-460.0,0.00021441,2]
[368572515,1751212276914,-1106.47,0.00021441,2]
[368572516,1751212276923,-1178.48,0.00021441,2]
[368572517,1751212276933,-551.66,0.00021441,2]
[368572518,1751212276942,-1415.94,0.00021441,2]
[368572519,1751212276951,-460.0,0.00021442,2]
[368572520,1751212276961,-460.0,0.00021442,2]
[368572521,1751212276970,-460.0,0.00021442,2]
[368572522,1751212276980,-590.93,0.00021442,2]
[368572523,1751212276989,-512.49,0.00021442,2]
[368572524,1751212276999,-460.0,0.00021442,2]
[368572525,1751212277008,-536.21,0.00021442,2]
[368572526,1751212277017,-460.0,0.00021442,2]
[368572527,1751212277027,-526.92,0.00021442,2]
[368572528,1751212277036,-1058.71,0.00021442,2]
[368572529,1751212277046,-498.32,0.00021442,2]
[368572530,1751212277055,-460.0,0.00021442,2]
[368572531,1751212277065,-460.0,0.00021442,2]
[368572532,1751212277074,-460.0,0.00021442,2]
[368572533,1751212277083,-460.0,0.00021442,2]
[368572534,1751212277093,-536.3,0.00021442,2]
[368572535,1751212277102,-1377.55,0.00021442,2]
[368572536,1751212277111,-2061.44,0.00021442,2]
[368572537,1751212277121,-2876.23,0.00021442,2]
[368572538,1751212277130,-1086.08,0.00021442,2]
[368572539,1751212277139,-497.34,0.00021442,2]
[368572540,1751212277148,-8050.15,0.00021442,2]
[368572541,1751212277158,-942.8,0.00021442,2]
[368572542,1751212277167,-2362.92,0.00021442,2]
[368572543,1751212277176,-1838.81,0.00021442,2]
[368572544,1751212277186,-8640.27,0.00021442,2]
[368572545,1751212277195,-430.85985422,0.00021442,2]
[368572546,1751212277205,-503.72,0.00021442,2]
[368572547,1751212277214,-2105.06,0.00021442,2]
[368572548,1751212277223,-3146.96,0.00021442,2]
[368572549,1751212277232,-2893.8,0.00021442,2]
[368572550,1751212277242,-953.17,0.00021442,2]
[368572551,1751212277251,-538.85,0.00021442,2]
[368572552,1751212277260,-481.62,0.00021442,2]
[368572553,1751212277269,-5316.81,0.00021442,2]
[368572554,1751212277280,-460.0,0.00021442,2]
[368572555,1751212277290,-2088.18,0.00021442,2]
[368572556,1751212277299,-457.83318789,0.00021442,2]
[368572557,1751212277308,-460.0,0.00021442,2]
[368572558,1751212277317,-986.63,0.00021442,2]
[368572559,1751212277327,-801.8,0.00021442,2]
[368572560,1751212277337,-460.0,0.00021443,2]
[368572561,1751212277346,-460.0,0.00021443,2]
[368572562,1751212277355,-460.0,0.00021444,2]
[368572563,1751212277368,-2936.17,0.00021444,2]
[368572564,1751212277377,-460.0,0.00021444,2]
[368572565,1751212277386,-396.87294872,0.00021444,2]
[368572566,1751212277396,-1139.15,0.00021444,2]
[368572567,1751212277407,-460.0,0.00021444,2]
[368572568,1751212277416,-487.35,0.00021444,2]
[368572569,1751212277425,-524.59,0.00021444,2]
[368572570,1751212277435,-460.0,0.00021444,2]
[368572571,1751212277444,-500.0,0.000215,2]
[368572572,1751212277454,-157.99368671,0.00021507,2]
[368572573,1751212277575,-1000.0,0.00021521,2]
[368572574,1751212277586,-1000.0,0.00021521,2]
[368572575,1751212277595,-1000.0,0.00021521,2]
[368572576,1751212277604,-500.0,0.00021521,2]
[368572577,1751212277613,-1000.0,0.00021521,2]
[368572578,1751212277623,-586.43269723,0.00021521,2]
[368572579,1751212277632,-641.59772147,0.00021521,2]
[368572580,1751212277643,-1200.0,0.00021521,2]
[368572581,1751212277653,-1000.0,0.00021521,2]
[368572582,1751212277663,-1000.38992242,0.00021521,2]
[368572583,1751212277672,-1000.0,0.00021521,2]
[368572584,1751212277681,-1000.0,0.00021521,2]
[368572585,1751212277691,-1000.0,0.00021521,2]
[368572586,1751212277701,-1000.0,0.00021521,2]
[368572587,1751212277709,-500.0,0.00021521,2]
[368572588,1751212277719,-1000.0,0.00021521,2]
[368572589,1751212277728,-1000.0,0.00021521,2]
[368572590,1751212277738,-1000.0,0.00021521,2]
[368572591,1751212277747,-1000.0,0.00021521,2]
[368572592,1751212277757,-1000.0,0.00021521,2]
[368572593,1751212277767,-1000.0,0.00021521,2]
[368572594,1751212277776,-1000.0,0.00021521,2]
[368572595,1751212277786,-1000.0,0.00021521,2]
[368572596,1751212277796,-159.0188729,0.00021542,2]
[368572597,1751212277806,-168.0,0.00021573,2]
[368572598,1751212277815,-2000.0,0.000216,2]
[368572599,1751212277824,-2000.0,0.000216,2]
[368572600,1751212277834,-5000.0,0.00021644,2]
[368572601,1751212277844,-5000.0,0.00021644,2]
[368572602,1751212277854,-496.57,0.00021703,2]
[368572603,1751212277864,-460.0,0.00021704,2]
[368572604,1751212277875,-496.57,0.00021704,2]
[368572605,1751212277885,-877.67,0.00021704,2]
[368572606,1751212277894,-985.74,0.00021704,2]
[368572607,1751212277904,-4171.86,0.00021704,2]
[368572608,1751212277913,-763.53,0.00021704,2]
[368572609,1751212277922,-460.0,0.00021706,2]
[368572610,1751212277931,-526.39,0.00021706,2]
[368572611,1751212277941,-5048.65,0.00021706,2]
[368572612,1751212277950,-6074.69,0.00021706,2]
[368572613,1751212277959,-227.0,0.00021706,2]
[368572614,1751212277968,-1371.34,0.00021706,2]
[368572615,1751212277979,-460.0,0.00021706,2]
[368572616,1751212277988,-779.81,0.00021706,2]
[368572617,1751212277998,-744.98,0.00021706,2]
[368572618,1751212278008,-6133.39,0.00021706,2]
[368572619,1751212278018,-6481.67,0.00021706,2]
[368572620,1751212278028,-6368.77,0.00021706,2]
[368572621,1751212278038,-922.66,0.00021706,2]
[368572622,1751212278047,-460.0,0.00021706,2]
[368572623,1751212278056,-3387.68,0.00021706,2]
[368572624,1751212278066,-868.93,0.00021706,2]
[368572625,1751212278076,-1017.26,0.00021706,2]
[368572626,1751212278085,-542.18,0.00021706,2]
[368572627,1751212278095,-858.3,0.00021706,2]
[368572628,1751212278105,-615.31,0.00021706,2]
[368572629,1751212278114,-460.0,0.00021714,2]
[368572630,1751212278123,-362.78262875,0.00021714,2]
[368572631,1751212278132,-3150.79,0.00021714,2]
[368572632,1751212278141,-819.52,0.00021714,2]
[368572633,1751212278151,-590.32,0.00021714,2]
[368572634,1751212278160,-1691.29,0.00021714,2]
[368572635,1751212278169,-515.43,0.00021714,2]
[368572636,1751212278178,-466.59,0.00021714,2]
[368572637,1751212278188,-496.87,0.00021714,2]
[368572638,1751212278197,-1306.01,0.00021714,2]
[368572639,1751212278207,-834.94,0.00021714,2]
[368572640,1751212278216,-1993.83,0.00021714,2]
[368572641,1751212278226,-933.22,0.00021714,2]
[368572642,1751212278249,-460.0,0.00021714,2]
[368572643,1751212278258,-460.0,0.00021714,2]
[368572644,1751212278268,-494.95,0.00021715,2]
[368572645,1751212278278,-2218.44,0.00021715,2]
[368572646,1751212278287,-983.0,0.00021715,2]
[368572647,1751212278297,-769.04,0.00021715,2]
[368572648,1751212278306,-1092.34,0.00021715,2]
[368572649,1751212278316,-460.0,0.00021715,2]
[368572650,1751212278324,-1464.13,0.00021715,2]
[368572651,1751212278334,-659.28,0.00021715,2]
[368572652,1751212278343,-460.0,0.00021715,2]
[368572653,1751212278352,-1106.47,0.00021715,2]
[368572654,1751212278363,-1178.48,0.00021715,2]
[368572655,1751212278374,-551.66,0.00021715,2]
[368572656,1751212278383,-1415.94,0.00021715,2]
[368572657,1751212278393,-460.0,0.00021716,2]
[368572658,1751212278403,-460.0,0.00021716,2]
[368572659,1751212278412,-460.0,0.00021716,2]
[368572660,1751212278422,-590.93,0.00021716,2]
[368572661,1751212278431,-512.49,0.00021716,2]
[368572662,1751212278441,-356.84751404,0.00021716,2]
[368572663,1751212278450,-536.21,0.00021716,2]
[368572664,1751212278460,-460.0,0.00021716,2]
[368572665,1751212278469,-526.92,0.00021716,2]
[368572666,1751212278479,-1058.71,0.00021716,2]
[368572667,1751212278488,-498.32,0.00021716,2]
[368572668,1751212278498,-460.0,0.00021716,2]
[368572669,1751212278507,-460.0,0.00021716,2]
[368572670,1751212278517,-460.0,0.00021716,2]
[368572671,1751212278526,-460.0,0.00021716,2]
[368572672,1751212278536,-536.3,0.00021716,2]
[368572673,1751212278546,-1377.55,0.00021716,2]
[368572674,1751212278555,-2061.44,0.00021716,2]
[368572675,1751212278564,-2876.23,0.00021716,2]
[368572676,1751212278574,-1086.08,0.00021716,2]
[368572677,1751212278583,-497.34,0.00021716,2]
[368572678,1751212278594,-8050.15,0.00021716,2]
[368572679,1751212278603,-942.8,0.00021716,2]
[368572680,1751212278612,-2362.92,0.00021716,2]
[368572681,1751212278622,-1838.81,0.00021716,2]
[368572682,1751212278631,-8640.27,0.00021716,2]
[368572683,1751212278641,-503.72,0.00021716,2]
[368572684,1751212278650,-2105.06,0.00021716,2]
[368572685,1751212278659,-3146.96,0.00021716,2]
[368572686,1751212278668,-2893.8,0.00021716,2]
[368572687,1751212278677,-953.17,0.00021716,2]
[368572688,1751212278687,-538.85,0.00021716,2]
[368572689,1751212278696,-481.62,0.00021716,2]
[368572690,1751212278706,-5316.81,0.00021716,2]
[368572691,1751212278715,-460.0,0.00021716,2]
[368572692,1751212278724,-2088.18,0.00021716,2]
[368572693,1751212278734,-460.0,0.00021716,2]
[368572694,1751212278744,-986.63,0.00021716,2]
[368572695,1751212278753,-801.8,0.00021716,2]
[368572696,1751212278763,-460.0,0.00021717,2]
[368572697,1751212278772,-460.0,0.00021717,2]
[368572698,1751212278782,-460.0,0.00021718,2]
[368572699,1751212278792,-2936.17,0.00021718,2]
[368572700,1751212278801,-460.0,0.00021718,2]
[368572701,1751212278811,-1139.15,0.00021718,2]
[368572702,1751212278820,-460.0,0.00021718,2]
[368572703,1751212278830,-487.35,0.00021718,2]
[368572704,1751212278840,-524.59,0.00021718,2]
[368572705,1751212278851,-460.0,0.00021718,2]
[368572706,1751212278860,-2000.0,0.000218,2]
[368572707,1751212278870,-554.2,0.000218,2]
[368572708,1751212278880,-200.0,0.000218,3]
[368572709,1751212278890,-5541.7,0.000219,2]
[368572710,1751212278900,-231.72867589,0.000219,2]
[368572711,1751212278910,-1490.0,0.00021917,2]
[368572712,1751212278920,-500.0,0.00021917,2]
[368572713,1751212278930,-500.0,0.00021917,2]
[368572714,1751212278940,-198.4,0.00021917,2]
[368572715,1751212278950,-500.0,0.00021917,2]
[368572716,1751212278959,-500.0,0.00021917,2]
[368572717,1751212278969,-500.0,0.00021917,2]
[368572718,1751212278979,-500.0,0.00021917,2]
[368572719,1751212278988,-500.0,0.00021917,2]
[368572720,1751212278998,-500.0,0.00021917,2]
[368572721,1751212279008,-500.0,0.00021917,2]
[368572722,1751212279018,-592.95932588,0.00021917,2]
[368572723,1751212279028,-151.0,0.00021918,2]
[368572724,1751212279039,-1000.0,0.00021918,2]
[368572725,1751212279049,-150.0,0.00021918,2]
[368572726,1751212279060,-3000.0,0.00021942,2]
[368572727,1751212279069,-496.57,0.00021977,2]
[368572728,1751212279079,-460.0,0.00021978,2]
[368572729,1751212279088,-496.57,0.00021978,2]
[368572730,1751212279098,-877.67,0.00021978,2]
[368572731,1751212279107,-985.74,0.00021978,2]
[368572732,1751212279117,-4171.86,0.00021978,2]
[368572733,1751212279127,-763.53,0.00021978,2]
[368572734,1751212279136,-460.0,0.0002198,2]
[368572735,1751212279145,-526.39,0.0002198,2]
[368572736,1751212279154,-5048.65,0.0002198,2]
[368572737,1751212279164,-6074.69,0.0002198,2]
[368572738,1751212279173,-1371.34,0.0002198,2]
[368572739,1751212279183,-460.0,0.0002198,2]
[368572740,1751212279192,-779.81,0.0002198,2]
[368572741,1751212279201,-744.98,0.0002198,2]
[368572742,1751212279211,-6133.39,0.0002198,2]
[368572743,1751212279220,-6481.67,0.0002198,2]
[368572744,1751212279229,-6368.77,0.0002198,2]
[368572745,1751212279239,-922.66,0.0002198,2]
[368572746,1751212279248,-460.0,0.0002198,2]
[368572747,1751212279257,-3387.68,0.0002198,2]
[368572748,1751212279267,-868.93,0.0002198,2]
[368572749,1751212279277,-1017.26,0.0002198,2]
[368572750,1751212279287,-542.18,0.0002198,2]
[368572751,1751212279296,-858.3,0.0002198,2]
[368572752,1751212279306,-615.31,0.0002198,2]
[368572753,1751212279315,-460.0,0.00021988,2]
[368572754,1751212279324,-3150.79,0.00021988,2]
[368572755,1751212279334,-819.52,0.00021988,2]
[368572756,1751212279344,-590.32,0.00021988,2]
[368572757,1751212279353,-1691.29,0.00021988,2]
[368572758,1751212279364,-515.43,0.00021988,2]
[368572759,1751212279374,-466.59,0.00021988,2]
[368572760,1751212279384,-496.87,0.00021988,2]
[368572761,1751212279394,-1306.01,0.00021988,2]
[368572762,1751212279403,-834.94,0.00021988,2]
[368572763,1751212279412,-1993.83,0.00021988,2]
[368572764,1751212279423,-933.22,0.00021988,2]
[368572765,1751212279433,-584.96274023,0.00021988,2]
[368572766,1751212279442,-460.0,0.00021988,2]
[368572767,1751212279453,-494.95,0.00021989,2]
[368572768,1751212279462,-2218.44,0.00021989,2]
[368572769,1751212279471,-983.0,0.00021989,2]
[368572770,1751212279481,-769.04,0.00021989,2]
[368572771,1751212279490,-1092.34,0.00021989,2]
[368572772,1751212279499,-460.0,0.00021989,2]
[368572773,1751212279509,-1464.13,0.00021989,2]
[368572774,1751212279518,-659.28,0.00021989,2]
[368572775,1751212279527,-460.0,0.00021989,2]
[368572776,1751212279538,-1106.47,0.00021989,2]
[368572777,1751212279548,-1178.48,0.00021989,2]
[368572778,1751212279558,-551.66,0.00021989,2]
[368572779,1751212279567,-1415.94,0.00021989,2]
[368572780,1751212279576,-460.0,0.0002199,2]
[368572781,1751212279586,-460.0,0.0002199,2]
[368572782,1751212279595,-460.0,0.0002199,2]
[368572783,1751212279604,-590.93,0.0002199,2]
[368572784,1751212279614,-512.49,0.0002199,2]
[368572785,1751212279623,-536.21,0.0002199,2]
[368572786,1751212279632,-460.0,0.0002199,2]
[368572787,1751212279643,-526.92,0.0002199,2]
[368572788,1751212279652,-1058.71,0.0002199,2]
[368572789,1751212279662,-498.32,0.0002199,2]
[368572790,1751212279672,-460.0,0.0002199,2]
[368572791,1751212279682,-460.0,0.0002199,2]
[368572792,1751212279691,-243.46794649,0.0002199,2]
[368572793,1751212279813,-460.0,0.0002199,2]
[368572794,1751212279825,-536.3,0.0002199,2]
[368572795,1751212279835,-1377.55,0.0002199,2]
[368572796,1751212279845,-2061.44,0.0002199,2]
[368572797,1751212279855,-952.33428329,0.0002199,2]
[368572798,1751212279872,-1923.89571671,0.0002199,2]
[368572799,1751212279882,-1086.08,0.0002199,2]
[368572800,1751212279891,-497.34,0.0002199,2]
[368572801,1751212279901,-8050.15,0.0002199,2]
[368572802,1751212279910,-942.8,0.0002199,2]
[368572803,1751212279920,-2362.92,0.0002199,2]
[368572804,1751212279930,-1838.81,0.0002199,2]
[368572805,1751212279940,-8640.27,0.0002199,2]
[368572806,1751212279949,-503.72,0.0002199,2]
[368572807,1751212279959,-2105.06,0.0002199,2]
[368572808,1751212279968,-3146.96,0.0002199,2]
[368572809,1751212279978,-2893.8,0.0002199,2]
[368572810,1751212279988,-953.17,0.0002199,2]
[368572811,1751212279997,-538.85,0.0002199,2]
[368572812,1751212280007,-481.62,0.0002199,2]
[368572813,1751212280017,-5316.81,0.0002199,2]
[368572814,1751212280026,-460.0,0.0002199,2]
[368572815,1751212280036,-2088.18,0.0002199,2]
[368572816,1751212280046,-460.0,0.0002199,2]
[368572817,1751212280055,-986.63,0.0002199,2]
[368572818,1751212280065,-801.8,0.0002199,2]
[368572819,1751212280075,-17.08578337,0.00021991,2]
[368572820,1751212289199,5000.0,0.0001811,2]
[368572931,1751212342245,600.0,0.00016972,2]
[368572932,1751212343815,600.0,0.00018068,2]
[368572933,1751212348418,3422.8486261,0.00017418,2]
[368573373,1751212413274,5000.0,0.00023,32]
[368573374,1751212440711,5000.0,0.0001833,6]
[368573674,1751212461173,2195.15941922,0.0001833,6]
[368573801,1751212541153,253.046593,0.00013699,2]
[368573802,1751212574604,24900.0,0.00017412,2]
[368573803,1751212579060,500.0,0.00016972,2]
[368573804,1751212580710,500.0,0.00018068,2]
[368573805,1751212581029,-152.0,0.00018129,2]
[368573806,1751212584453,-103.0,0.00018129,2]
[368573807,1751212584480,-167.18271929,0.00018312,2]
[368573808,1751212584504,-47.05547748,0.00018312,2]
[368573809,1751212590465,-123.85326398,0.00018312,2]
[368573810,1751212590487,-176.14673602,0.00018315,2]